Cogmind - Beta 13 @@@ ROGUE MODE // 2024.04.29 @ 08:30:44 Player: peko Result: Destroyed by G-34 Mercenary with Small Laser Performance ------------- Evolutions (1) 500 Regions Visited (2) 400 Robots Destroyed (17) 85 Value Destroyed (435) 435 Prototype IDs (0) 0 Alien Tech Used (0) 0 Bonus (0) 0 TOTAL SCORE: 1420 Bonus ------- None Cogmind --------- Core Integrity 0/400 Matter 161/300 Energy 350/350 System Corruption 0% Temperature Cool (6) Movement Core (250) Ox4 Location -9/Materials Parts ------- > --- POWER (1) -------- (None) > --- PROPULSION (2) --- (None) > --- UTILITY (4) ------ Small Storage Unit High-capacity Battery Sensor Array > --- WEAPON (2) ------- Medium Laser Light Assault Rifle > --- INVENTORY (8) ---- Light Ion Engine Improved Ion Engine Improved Ion Engine VTOL Module VTOL Module VTOL Module VTOL Module Peak State ------------ > --- POWER ------------ Ion Engine > --- PROPULSION ------- VTOL Module VTOL Module > --- UTILITY ---------- Small Storage Unit High-capacity Battery Sensor Array > --- WEAPON ----------- Medium Laser Light Assault Rifle > --- INVENTORY -------- Light Ion Engine Light Ion Engine Improved Ion Engine VTOL Module VTOL Module Grenade Launcher Grenade Launcher [Rating: 11] Favorites ----------- Power Ion Engine Engine Ion Engine Propulsion Aluminum Leg Leg Aluminum Leg Flight Unit VTOL Module Utility Small Storage Unit Device Sensor Array Storage Small Storage Unit Weapon Medium Laser Energy Gun Medium Laser Ballistic Gun Light Assault Rifle Launcher Grenade Launcher Slashing Weapon Katana Build | -11 -10 -9 ------- Run | Yrd Mat Mat Slots Evolved 2 | . . 2 Power . | . . . Propulsion . | . . . Utility 2 | . . 2 Weapon . | . . . Parts Attached 21 | 6 3 12 Power 1 | 1 . . Engine 1 | 1 . . Core . | . . . Reactor . | . . . Propulsion 8 | 2 1 5 Treads . | . . . Leg 6 | 2 1 3 Wheel . | . . . Hover . | . . . Flight 2 | . . 2 Utility 5 | 1 2 2 Device 2 | . 1 1 Storage 3 | 1 1 1 Processor . | . . . Hackware . | . . . Protection . | . . . Artifact . | . . . Weapon 7 | 2 . 5 Energy Gun 2 | 1 . 1 Energy Cannon . | . . . Ballistic Gun 2 | 1 . 1 Ballistic Cannon . | . . . Launcher 2 | . . 2 Special Weapon . | . . . Impact Weapon . | . . . Slashing Weapon 1 | . . 1 Piercing Weapon . | . . . Special Melee Weapon . | . . . Unidentified Prototypes . | . . . Parts Lost 7 | . . 7 Power 1 | . . 1 Propulsion 2 | . . 2 Utility 1 | . . 1 Weapon 3 | . . 3 Highest Loss Streak 4 | . . 4 To Critical Strikes . | . . . Average Slot Usage (%) 82 | . 98 67 Engine 9 | . 14 4 Leg 18 | . 28 10 Flight 1 | . . 3 Device 4 | . . 7 Storage 23 | . 26 22 Energy Gun 11 | . 14 9 Ballistic Gun 11 | . 14 9 Naked Turns . | . . . Heaviest Build 18 | 13 17 18 Greatest Support 20 | 20 20 20 Greatest Overweight (x) 4 | 1 . 4 Average Overweight (x) . | . . 1 Largest Inventory Capacity 8 | 8 8 8 Average Capacity 7 | 7 8 8 Most Carried 8 | 5 6 8 Average Carried 5 | 1 3 6 Final Capacity 8 | 8 8 8 Final Carried 7 | 1 5 7 Class Distribution -------------------- 100% | Mutant Dominant Class ---------------- Mutant | -10/Materials Mutant | -9/Materials Resources | -11 -10 -9 ----------- Run | Yrd Mat Mat Matter Collected 336 | 154 84 98 Remotely . | . . . Salvage Created 437 | . 119 318 Parts 33 | . 11 22 Haulers Intercepted . | . . . Recyclers Shooed 2 | . . 2 Parts Field Recycled . | . . . Retrieved Matter . | . . . Parts Self-Destructed . | . . . Prevented . | . . . Kills | -11 -10 -9 ------- Run | Yrd Mat Mat Combat Hostiles Destroyed 12 | . 4 8 Melee 3 | . . 3 Guns 5 | . 4 1 AOE 4 | . . 4 Classes Destroyed 5 | . 3 2 Worker 2 | . . 2 Watcher 3 | . 1 2 Swarmer 3 | . 3 . Grunt 6 | . 1 5 Duelist 3 | . . 3 Best Kill Streak 8 | . 3 8 Combat Bots Only 7 | . 3 7 Max Kills in Single Turn 4 | . 1 4 Gunslinging . | . . . Exploded 3 | . . 3 Melee 1 | . . 1 Uniques/NPCs Destroyed . | . . . Combat | -11 -10 -9 -------- Run | Yrd Mat Mat Hostile Shots Fired 107 | . 23 84 Missed 28 | . 7 21 Damage Taken 1188 | . 168 1020 Core 440 | . 38 402 Absorbed by Shields . | . . . Core Remaining (%) 92 | 100 84 . Volleys Fired 47 | . 13 34 Largest 2 | . 2 2 Hottest 70 | . 70 70 Shots Fired 94 | . 26 68 Gun 88 | . 26 62 Cannon . | . . . Launcher 6 | . . 6 Special . | . . . Kinetic 44 | . 13 31 Thermal 44 | . 13 31 Explosive 6 | . . 6 Electromagnetic . | . . . Robot Hit Streak 13 | . 10 13 Robot Miss Streak 4 | . 3 4 Penetration Max . | . . . Secondary Targets 1 | . 1 . Max Gunslinging Chain 1 | . 1 . Shots Hit Robots 66 | . 18 48 Core Hits 28 | . 7 21 Critical Kills . | . . . Critical Parts Destroyed . | . . . Critical Strikes 1 | . . 1 Burn 1 | . . 1 Melee Attacks 4 | . . 4 Impact . | . . . Slashing 4 | . . 4 Piercing . | . . . Sneak Attacks . | . . . Combat Hostiles . | . . . Follow-up Attacks . | . . . Damage Inflicted 1066 | . 193 873 Guns 577 | . 191 386 Cannons . | . . . Explosions 362 | . . 362 Melee 125 | . . 125 Ramming 2 | . 2 . Kinetic 225 | . 66 159 Thermal 352 | . 125 227 Explosive 362 | . . 362 Electromagnetic . | . . . Impact . | . . . Slashing 125 | . . 125 Piercing . | . . . Highest Corruption . | . . . Average Corruption . | . . . Corruption Purged . | . . . Corruption Blocked . | . . . Overload Shots . | . . . Overflow Damage 5 | . . 5 Projectiles . | . . . Explosions 5 | . . 5 Melee . | . . . Knockbacks . | . . . Impact . | . . . Kinetic . | . . . Secondary . | . . . Self-Inflicted Damage 163 | . . 163 Shots 5 | . . 5 Rammed . | . . . Targets Rammed 1 | . 1 . Kicked 1 | . 1 . Crushed . | . . . Highest Temperature 106 | . 106 43 Average Temperature 27 | . 47 16 Received Heat Transfer 408 | . 72 336 Siege Activations . | . . . Robots Corrupted . | . . . Combat Hostiles . | . . . Parts Fried . | . . . Impact Corruptions . | . . . Robots Melted . | . . . Combat Hostiles . | . . . Parts Melted . | . . . Heat Transferred 1110 | . 370 740 Parts Sabotaged . | . . . Parts Stolen . | . . . Parts Stripped . | . . . Power Chain Reactions . | . . . Alert | -11 -10 -9 ------- Run | Yrd Mat Mat Peak Influence 287 | . 142 287 Initial 59 | . . 59 Average 107 | . 63 163 Maximum Alert Level 1 | . . 1 Low Security (%) 74 | 100 100 48 Level 1 25 | . . 51 Level 2 . | . . . Level 3 . | . . . Level 4 . | . . . Level 5 . | . . . High Security . | . . . Max Security . | . . . Squads Dispatched 1 | . . 1 Investigation . | . . . Extermination . | . . . Reinforcement 1 | . . 1 Assault . | . . . Garrison . | . . . Intercept . | . . . Searches Triggered . | . . . Construction Impeded . | . . . Haulers Reinforced . | . . . Active Scanning Responses . | . . . Cargo Convoy Interrupts . | . . . Stealth | -11 -10 -9 --------- Run | Yrd Mat Mat Distress Signals 1 | . . 1 Communications Jammed . | . . . Distress Signals . | . . . Times Spotted 27 | . 7 20 Peak Tracking Total 8 | . 3 8 Tactical Retreats 2 | . 1 1 Traps | -11 -10 -9 ------- Run | Yrd Mat Mat Traps Triggered . | . . . Indirectly . | . . . Trap Hack Attempts . | . . . Triggered . | . . . Disarmed . | . . . Reprogrammed . | . . . Reused . | . . . Traps Extracted . | . . . Installed . | . . . Triggered . | . . . Machines | -11 -10 -9 ---------- Run | Yrd Mat Mat Machines Disabled 1 | . . 1 Max in Single Turn 1 | . . 1 Machines Repaired . | . . . Machines Dismantled . | . . . Machines Sabotaged . | . . . Overloaded Fab Kills . | . . . Hacking | -11 -10 -9 --------- Run | Yrd Mat Mat Machines Accessed . | . . . Terminals . | . . . Fabricators . | . . . Repair Stations . | . . . Recycling Units . | . . . Scanalyzers . | . . . Garrison Access . | . . . Total Hacks . | . . . Successful . | . . . Failed . | . . . Catastrophic . | . . . Database Lockouts . | . . . Manual . | . . . Terminals . | . . . Fabricators . | . . . Repair Stations . | . . . Recycling Units . | . . . Scanalyzers . | . . . Garrison Access . | . . . Terminal Hacks . | . . . Fabricator Hacks . | . . . Repair Station Hacks . | . . . Recycling Unit Hacks . | . . . Scanalyzer . | . . . Garrison Access Hacks . | . . . Unauthorized Hacks . | . . . Terminals . | . . . Fabricators . | . . . Repair Stations . | . . . Recycling Units . | . . . Scanalyzers . | . . . Garrison Access . | . . . Data Cores Recovered . | . . . Used . | . . . Hacking Detections . | . . . Full Trace Events . | . . . Feedback Events . | . . . Feedback Blocked . | . . . Robot Schematics Acquired . | . . . Robots Built . | . . . Authchips . | . . . Time . | . . . Total Robot Build Rating . | . . . Part Schematics Acquired . | . . . Parts Built . | . . . Authchips . | . . . Time . | . . . Total Part Build Rating . | . . . Parts Repaired . | . . . Time . | . . . Parts Recycled . | . . . Recycled Matter . | . . . Retrieved Matter . | . . . Retrieved Components . | . . . Parts Scanalyzed . | . . . Part Schematics Acquired . | . . . Parts Damaged . | . . . Bothacking | -11 -10 -9 ------------ Run | Yrd Mat Mat Used RIF Installer . | . . . Robots Hacked . | . . . Non-combat . | . . . Combat . | . . . Robot Hacks Applied . | . . . Relay Couplers Released . | . . . Fabnet Peak Effective % . | . . . Robots Rewired . | . . . Allies Hacked . | . . . Hacks Repelled . | . . . Allies | -11 -10 -9 -------- Run | Yrd Mat Mat Total Allies . | . . . Largest Group . | . . . Highest-Rated Group . | . . . Highest-Rated Ally . | . . . Total Orders . | . . . Ally Attacks . | . . . Total Damage . | . . . Kills . | . . . Allies Corrupted . | . . . Allies Melted . | . . . Intel | -11 -10 -9 ------- Run | Yrd Mat Mat Robot Analysis Total . | . . . Derelict Logs Recovered . | . . . Drone Launches . | . . . Drone Recoveries . | . . . Exploration | -11 -10 -9 ------------- Run | Yrd Mat Mat Turns Passed 692 | 64 285 343 Spaces Moved 343 | 53 160 130 Core 38 | 20 . 18 Treads . | . . . Legs 284 | 33 160 91 Wheels . | . . . Hover . | . . . Flight 21 | . . 21 Fastest Speed 50 | 50 120 120 Average Speed 132 | 98 120 161 Slowest Speed 250 | 190 120 250 Overloaded Moves . | . . . Propulsion Burnouts . | . . . Robots Hopped . | . . . Cave-ins Triggered . | . . . Exploration Rate (%) 17 | 3 35 14 Regions Visited 2 Branch Regions . Pre-discovered Areas . | . . . Known Exits Taken . | . . . Unknown Exits Taken 2 | 1 1 . Scrap Searched . | . . . Spaces Dug . | . . . Terrain Destroyed 41 | . . 41 Melee . | . . . Projectile . | . . . AOE 41 | . . 41 Terrain Rammed . | . . . Walls Destroyed . | . . . Machines Disabled . | . . . Actions | -11 -10 -9 --------- Run | Yrd Mat Mat Total 488 | 64 230 194 Wait 46 | . 46 . Move 341 | 52 159 130 Hop . | . . . Pick Up 22 | 6 6 10 Fast Attach 3 | 1 . 2 Attach 13 | 5 2 6 Detach 1 | . 1 . Swap 5 | . 1 4 Drop 5 | . 1 4 Fire 47 | . 13 34 Melee 4 | . . 4 Ram . | . . . Kick 1 | . 1 . Crush . | . . . Escape Stasis . | . . . Rewire . | . . . Trap . | . . . Miscellaneous . | . . . Route ------- -11/Scrapyard -10/Materials (discovered 2 exits: [*Mat x2]) -9/Materials History --------- Turn | Location | Event 2 | -11/Scrapyard | Met Revision 17 14 | -11/Scrapyard | Discovered new exit (range 15) 65 | -11/Scrapyard | Entered Materials 180 | -10/Materials | Discovered new exit (range 10) 262 | -10/Materials | Discovered new exit (range 3) 314 | -10/Materials | Build established: Mutant 350 | -10/Materials | Entered another Materials area 350 | -9/Materials | Evolved 2 slots: Utility x2 506 | -9/Materials | Core integrity fell below 50% 523 | -9/Materials | Core integrity fell below 20% 536 | -9/Materials | Lost 4 parts (1p1n2w) 550 | -9/Materials | Destroyed 7 combat bots 693 | -9/Materials | Destroyed by G-34 Mercenary with Small Laser Last Messages --------------- 00577_ K-01 Serf collects debris. 00578_ U-05 Engineer builds a Wall. 00578_ U-05 Engineer lays Concrete. 00579_ K-01 Serf collects debris. 00599_ O-16 Technician: "IFF HANDSHAKE FAILED. SECURING TERMINAL." 00599_ K-01 Serf collects debris. 00604_ ALERT: Hostiles spotted, dispatching reinforcements to Terminal M007. 00610_ K-01 Serf destroyed. 00631_ R-06 Scavenger collects Med. Matter Pod. 00634_ Acquired Lgt. Ion Engine. 00636_ R-06 Scavenger collects Wheel. 00644_ W-16 Scout destroyed. 00651_ W-16 Scout sends out distress signal. 00652_ W-16 Scout destroyed. 00655_ Acquired 29 matter. 00659_ Acquired Sensor Array. 00659_ R-06 Scavenger collects Hover Unit. 00665_ Aluminum Leg destroyed. Map ----- +----------------------------------------------------+ | ???????????????????????????????? ????????????????? | | ???????????????????????????????? "???????????????? | | ???????????????????????????????? "???????????????? | | ???????????????????????????? ??? "???????????????? | | ????????????????????????????T??? ???????????????? | | ???????????????????????????? ???#+#??????????????? | | ???????????????????????????? ???# ########???????? | | ???????????????????????????? ???# #!!! #???????? | | ???????????????????????????# #### #!!! #???????? | | ???????????????????????????# # # #!!! %#???????? | | ???????????????????????????# #### ! #???????? | | ???????????????????????????# % #???????? | | ???????????????????????????# #### [#???????? | | ???????????????????????????# # =#[####???????##### | | ???????????????????????????# # #% #???????# | | ???????????????????????????# # # ############ | | ???????????????????????????# # + | | ???????????????????????????# ## % ####### | | ???????????????????????????# ## # #?????# | | ???????????????????#########+# # #?????# | | ???????????????????# g*!## # % ########### | | ???????????????????# g"" #### ! | | ???????????????????# "" #??# | | ???????????????????# """ T" #??# """ """ """ | | ???????????????????# """ "" #??# """ """ """ | | ???????????????????# """ @"" #??# """ """ """ | | ???????????????????# #??# | | ???????????????????# w #??# % | | ???????????????????#####/######## | | ?????????????????????# =% ? | | ??????????????# ############# | | ??????????????# T #????????????#### # | | ??????????????# #???????????????# ? | | ??????????????# #### #???????????????# ? | | ??????????????# ????## ##???????????????# ? | | ??????????????# ??????# #?????????????????? ? | | ??????????????????????# #???????????????????? ? | | ??????????????????????# #??????????????????????? | | ??????????????????????# #??????????????????????? | | ??????????????????????# #??????????????????????? | | ??????????????????????# #??????????????????????? | | ??????????????????????# ???????????????????????? | | ??????????????????????# ???????????????????????? | | ??????????????????????# ???????????????????????? | | ??????????????????????? ???????????????????????? | | ?????????????????????????????????????????????????? | | ?????????????????????????????????????????????????? | | ?????????????????????????????????????????????????? | | ?????????????????????????????????????????????????? | | ?????????????????????????????????????????????????? | +----------------------------------------------------+ Best States ------------- Heat Dissipation 28 Energy Generation 10 Energy Capacity 500 Matter Stores 239 Matter Capacity 300 Sight Range 16 Robot Scan Range 14 Terrain Scan Density 10 Evasion (%) 55 Item Schematics ----------------- None Robot Schematics ------------------ None Fabricated ------------ Nothing Alien Tech Used ----------------- None Achievements -------------- None Challenges ------------ None Game ------ Seed IonStasisMallet Manual? 0 Play Time 00:10:26 Cumulative 1.7 hours Start 2024.04.29 @ 08:22:01 End 2024.04.29 @ 08:30:44 Sessions 1 Manual Loads 0 Difficulty Rogue Special Mode None Game No. 7 Rogue 7 Adventurer 0 Explorer 0 Win Type - Total 0 Types 0/0/0/0/0/0/0/0/0 Lore% 0 Gallery% 7 Achievement% 7 Wizard Run 0 Options --------- Layout 1 ASCII 0 Keyboard 0 Movement Mouse Keybinds 0 Fullscreen 0 Font 20/SmallcapsGlow Map View 50x35 Zoom Use 0% Tactical HUD 1 Map Filters NONE Filters NONE Steam 1 RUN: b4249c0f-ba53-47dd-a091-d89a558c6a4c